bitfinex/quotes_SOLUSD_20241113
["timestamp","ask_amount","ask_price","bid_price","bid_amount"]
[1731524299879,26.3526116,219.53,219.5,0.1]
[1731524300080,4.554,219.59,219.52,26.4526116]
[1731524300282,4.554,219.59,219.56,0.1]
[1731524301295,4.5532,219.63,219.61,0.1]
[1731524302278,30.9042116,219.7,219.65,0.1]
[1731524303183,26.3526116,219.66,219.59,0.1]
[1731524303483,26.3526116,219.6,219.56,0.1]
[1731524303694,26.3526116,219.6,219.51,6.549]
[1731524303695,43.776884,219.56,219.54,0.1]
[1731524303987,59.89943702,219.56,219.46,6.5739]
[1731524304194,52.7052232,219.47,219.41,6.5739]
[1731524304392,16.12255302,219.55,219.37,15.9344]
[1731524304393,20.0,219.41,219.37,15.9344]
[1731524304597,26.3526116,219.38,219.34,3.7473]
[1731524305094,22.13942919,219.59,219.34,3.7473]
[1731524305095,26.3526116,219.44,219.37,15.9821]
[1731524305297,26.3526116,219.42,219.38,12.8632]
[1731524305797,26.3526116,219.4,219.38,12.7632]
[1731524305985,26.3526116,219.4,219.37,15.9821]
[1731524306297,26.3526116,219.45,219.33,2.0259]
[1731524306298,52.7052232,219.38,219.33,2.0259]
[1731524306500,52.7052232,219.34,219.23,15.1448]
[1731524306703,43.776884,219.47,219.3,0.1]
[1731524306878,43.776884,219.47,219.23,24.2675]
[1731524306879,43.776884,219.47,219.32,0.2]
[1731524307438,23.776884,219.43,219.28,0.1]
[1731524307712,26.3526116,219.4,219.31,26.3526116]
[1731524307901,26.3526116,219.38,219.3,6.176]
[1731524308097,26.3526116,219.38,219.31,26.3526116]
[1731524308285,23.776884,219.39,219.32,0.12549]
[1731524308477,20.0,219.44,219.32,0.12549]
[1731524308478,26.3526116,219.42,219.33,26.3526116]
[1731524308684,20.0,219.44,219.33,26.3526116]
[1731524308685,26.3526116,219.4,219.33,26.3526116]
[1731524308985,46.3526116,219.44,219.35,26.3526116]
[1731524309298,26.3526116,219.44,219.37,26.3526116]
[1731524309501,23.776884,219.44,219.37,26.3526116]
[1731524309702,50.1294956,219.44,219.37,26.3526116]
[1731524309906,26.3526116,219.39,219.32,0.12549]
[1731524310113,23.776884,219.44,219.25,6.1608]
[1731524310114,26.3526116,219.33,219.25,6.1608]
[1731524310600,26.3526116,219.29,219.25,6.1608]
[1731524310778,26.3526116,219.29,219.23,15.1448]
[1731524311208,26.3526116,219.27,219.23,15.1448]
[1731524311409,30.9131116,219.27,219.19,15.2851]
[1731524311890,26.3526116,219.25,219.19,6.1608]
[1731524312896,42.80132094,219.24,219.17,15.7347]
[1731524313211,42.80132094,219.2,219.14,9.1263]
[1731524313502,42.80132094,219.18,219.11,3.651]
[1731524313699,42.80132094,219.2,219.11,55.58012094]
[1731524313899,42.80132094,219.2,219.13,42.80132094]
[1731524314202,42.80132094,219.16,219.11,9.1278]
[1731524314507,42.80132094,219.16,219.07,46.45302094]
[1731524314800,86.57820494,219.22,219.15,42.80132094]
[1731524315017,42.80132094,219.2,219.11,42.80132094]
[1731524315209,42.80132094,219.18,219.11,42.80132094]
[1731524315510,42.80132094,219.18,219.09,46.45272094]
[1731524315511,47.36382094,219.18,219.09,46.45272094]
[1731524315688,20.0,219.17,219.09,46.45272094]
[1731524316005,42.80132094,219.16,219.09,46.45272094]
[1731524316586,42.80132094,219.12,219.03,62.72892094]
[1731524316787,42.80132094,219.08,219.02,9.5609717]
[1731524317196,42.80132094,219.14,219.05,42.80132094]
[1731524317613,20.0,219.13,219.06,0.12549]
[1731524318108,20.0,219.13,219.07,42.80132094]
[1731524318311,47.36462094,219.14,219.07,42.80132094]
[1731524318909,42.80132094,219.16,219.09,42.80132094]
[1731524319110,4.5618,219.21,219.02,0.4294717]
[1731524319111,42.80132094,219.14,219.02,0.4294717]
[1731524319315,42.80132094,219.12,219.03,42.80132094]
[1731524319610,42.80132094,219.13,219.07,0.12549]
[1731524320096,42.80132094,219.11,219.02,52.36229264]
[1731524320299,42.80132094,219.11,219.04,42.80132094]
[1731524320800,4.5633,219.14,219.07,42.80132094]
[1731524321005,42.80132094,219.17,219.11,42.80132094]
[1731524321203,42.80132094,219.21,219.13,42.80132094]
[1731524321389,11.402,219.26,219.13,42.80132094]
[1731524321390,42.80132094,219.26,219.13,0.1]
[1731524321594,4.5605,219.28,219.2,42.80132094]
[1731524321808,47.36182094,219.28,219.22,42.80132094]
[1731524322006,47.36182094,219.28,219.2,42.80132094]
[1731524322511,47.36182094,219.28,219.15,6.2658]
[1731524322512,42.80132094,219.26,219.18,42.80132094]
[1731524322815,4.5605,219.28,219.22,42.80132094]
[1731524322993,47.36182094,219.28,219.2,42.80132094]
[1731524323692,4.5607,219.26,219.2,42.80132094]
[1731524324113,4.5607,219.26,219.21,42.80132094]
[1731524324307,20.0,219.28,219.21,42.80132094]
[1731524324496,42.80132094,219.3,219.21,42.80132094]
[1731524325007,42.80132094,219.28,219.2,42.80132094]
[1731524325209,4.56,219.3,219.24,42.80132094]
[1731524326114,42.80132094,219.29,219.22,42.80132094]
[1731524326411,20.0,219.28,219.2,42.80132094]
[1731524327122,20.0,219.28,219.22,42.80132094]
[1731524327302,20.0,219.28,219.2,42.80132094]
[1731524328008,4.5598,219.31,219.26,42.80132094]
[1731524328412,47.36072094,219.33,219.26,42.80132094]
[1731524328620,47.36072094,219.33,219.18,12.8748]
[1731524328922,4.5594,219.33,219.27,42.80132094]
[1731524329937,47.36072094,219.33,219.25,42.80132094]
[1731524330723,11.62448427,219.35,219.29,42.80132094]
[1731524330920,7.06548427,219.35,219.29,42.80132094]
[1731524331216,4.557,219.44,219.33,42.80132094]
[1731524331518,4.557,219.44,219.19,9.1241]
[1731524331519,42.80132094,219.34,219.19,9.1241]
[1731524331815,42.80132094,219.26,219.19,9.1241]
[1731524332026,47.36222094,219.26,219.19,9.1241]
[1731524333625,42.80132094,219.22,219.14,55.57802094]
[1731524333819,42.80132094,219.2,219.14,9.1262]
[1731524334117,42.80132094,219.22,219.15,0.12549]
[1731524334299,42.80132094,219.18,219.11,15.2506]
[1731524334507,42.80132094,219.18,219.1,46.45242094]
[1731524334901,26.35711256,219.17,219.1,30.00821256]
[1731524335101,26.35711256,219.17,219.11,0.12549]
[1731524335399,50.13399656,219.25,219.16,26.35711256]
[1731524335603,50.13399656,219.25,219.18,26.35711256]
[1731524335604,24.5612,219.24,219.18,26.35711256]
[1731524336208,20.0,219.18,219.08,9.1287]
[1731524336413,26.35711256,219.23,219.16,26.35711256]
[1731524336610,24.5612,219.24,219.17,26.35711256]
[1731524336908,50.91831256,219.24,219.16,26.35711256]
[1731524337109,26.35711256,219.23,219.15,26.35711256]
[1731524337439,26.35711256,219.17,219.09,26.35711256]
[1731524337627,30.91991256,219.16,219.08,26.35711256]
[1731524337821,26.35711256,219.11,219.03,35.48801256]
[1731524338117,26.35711256,219.11,219.07,0.12549]
[1731524338315,26.35711256,219.12,219.07,0.12549]
[1731524338509,26.35711256,219.11,219.07,0.12549]
[1731524338709,26.35711256,219.12,219.06,19.2086]
[1731524338925,26.35711256,219.13,219.07,0.12549]
[1731524339507,26.35711256,219.13,219.08,3.6516]
[1731524340324,26.35711256,219.1,219.07,0.12549]
[1731524340907,4.5628,219.16,219.02,0.4294717]
[1731524340908,26.35711256,219.08,219.02,0.4294717]
[1731524341109,26.35711256,219.05,219.02,13.2134717]
[1731524341631,26.35711256,219.05,219.03,0.12549]
[1731524342009,4.564,219.11,219.03,0.12549]
[1731524342324,26.35711256,219.08,219.03,0.12549]
[1731524342712,26.35711256,219.08,219.04,3.6523]
[1731524343529,26.35711256,219.09,219.04,3.6523]
[1731524343729,26.35711256,219.12,219.05,26.35711256]
[1731524344031,26.35711256,219.12,219.04,12.783]
[1731524344032,26.35711256,219.09,219.04,9.1307]
[1731524344233,4.5629,219.16,219.04,12.783]
[1731524344411,4.5629,219.16,219.05,26.35711256]
[1731524344610,26.35711256,219.14,219.07,26.35711256]
[1731524344954,26.35711256,219.15,219.08,26.35711256]
[1731524345126,26.35711256,219.11,219.04,31.1445]
[1731524345311,7.06907094,219.2,219.07,26.35711256]
[1731524345647,7.06907094,219.2,219.06,0.2]
[1731524345819,7.06907094,219.2,219.08,0.1]
[1731524346133,4.5618,219.21,219.08,0.1]
[1731524346726,26.35711256,219.19,219.12,26.35711256]
[1731524347034,30.91811256,219.25,219.13,12.7778]
[1731524347336,4.561,219.25,219.18,26.35711256]
[1731524347634,7.06677285,219.26,219.2,26.35711256]
[1731524347833,7.06677285,219.26,219.22,26.35711256]
[1731524348037,7.06677285,219.26,219.23,26.35711256]
[1731524348332,7.06677285,219.26,219.25,26.35711256]
[1731524348519,7.06677285,219.26,219.25,70.23399656]
[1731524348936,42.73517998,219.38,219.26,16.5327]
[1731524349131,42.73517998,219.37,219.26,16.5327]
[1731524349335,42.73517998,219.37,219.3,42.73517998]
[1731524349528,42.73517998,219.35,219.28,42.73517998]
[1731524349839,42.73517998,219.35,219.26,16.5327]
[1731524350026,42.73517998,219.34,219.27,42.73517998]
[1731524350230,42.73517998,219.32,219.25,12.7708]
[1731524351334,42.73517998,219.32,219.25,55.50597998]
[1731524351543,42.73517998,219.35,219.27,42.73517998]
[1731524351721,4.5572,219.43,219.25,12.7708]
[1731524351722,42.73517998,219.31,219.25,12.7708]
[1731524351929,42.73517998,219.29,219.25,9.122]
[1731524352223,92.73517998,219.5,219.33,0.2]
[1731524352540,97.29107998,219.5,219.42,42.73517998]
[1731524352832,97.29107998,219.5,219.31,0.1]
[1731524352833,42.73517998,219.44,219.31,0.1]
[1731524353019,42.73517998,219.46,219.38,42.73517998]
[1731524353222,42.73517998,219.44,219.36,42.73517998]
[1731524353629,20.0,219.43,219.34,42.73517998]
[1731524353819,42.73517998,219.42,219.34,42.73517998]
[1731524354020,42.73517998,219.42,219.29,12.7684]
[1731524354219,42.73517998,219.42,219.33,42.73517998]
[1731524354419,20.0,219.49,219.41,42.73517998]
[1731524354729,50.0,219.5,219.48,42.73517998]
[1731524354922,50.0,219.5,219.48,55.49237998]
[1731524355323,50.0,219.5,219.48,9.1124]
[1731524356245,50.0,219.5,219.49,42.73517998]
[1731524356421,50.0,219.5,219.49,42.83517998]
[1731524356838,50.0,219.5,219.49,86.71206398]
[1731524357726,2800.0,219.59,219.58,43.976884]
[1731524358022,2654.35345111,219.59,219.58,86.61206398]
[1731524358224,2654.35345111,219.59,219.58,119.21206398]
[1731524358535,2654.35345111,219.59,219.58,76.476884]
[1731524358742,2654.35345111,219.59,219.58,119.21206398]
[1731524359239,2654.35345111,219.59,219.58,52.5]
[1731524359418,2654.35345111,219.59,219.58,95.23517998]
[1731524359834,2654.35345111,219.59,219.58,78.87847998]
[1731524360036,2654.35345111,219.59,219.58,46.37847998]
[1731524360341,2654.35345111,219.59,219.58,3.6433]
[1731524361238,2654.35345111,219.59,219.58,46.50396998]
[1731524361417,2654.35345111,219.59,219.58,46.60396998]
[1731524362127,2654.35345111,219.59,219.58,66.60396998]
[1731524362338,2654.35345111,219.59,219.58,90.48085398]
[1731524362543,2458.49485111,219.59,219.58,90.48085398]
[1731524362843,2439.33295111,219.59,219.58,90.48085398]
[1731524363039,2439.33295111,219.59,219.58,47.745674]
[1731524363250,2322.3898393,219.59,219.58,90.48085398]
[1731524363542,2315.7232393,219.59,219.58,90.48085398]
[1731524363744,2310.0949393,219.59,219.58,47.745674]
[1731524363917,2310.0949393,219.59,219.58,133.21603396]
[1731524364331,2309.9695393,219.59,219.58,133.21603396]
[1731524364642,2286.1995393,219.59,219.58,133.21603396]
[1731524364845,2286.1995393,219.59,219.58,90.48085398]
[1731524365422,2277.97519734,219.59,219.58,169.71461568]
[1731524365628,2277.0650173,219.59,219.58,66.10771565]
[1731524365842,2269.48288059,219.59,219.58,115.66339432]
[1731524366043,2217.59210597,219.59,219.58,108.40906125]
[1731524366232,2191.4523922,219.59,219.58,108.40906125]
[1731524366545,2158.8716922,219.59,219.58,118.65912203]
[1731524366738,2158.8716922,219.59,219.58,204.12948199]
[1731524367041,2138.7590099,219.59,219.58,204.12948199]
[1731524367250,1816.6107011,219.59,219.58,246.86466197]
[1731524367545,1625.97478291,219.59,219.58,107.55141345]
[1731524367756,1398.82114201,219.59,219.58,230.97299261]
[1731524368043,1364.7623999,219.59,219.58,234.70786042]
[1731524368246,1216.20601701,219.59,219.58,238.39200528]
[1731524368433,1141.56670485,219.59,219.58,111.53279794]
[1731524368739,934.48694994,219.59,219.58,114.31334348]
[1731524368944,914.59275989,219.59,219.58,94.31334348]
[1731524369130,850.51275989,219.59,219.58,39.838423]
[1731524369331,843.39275989,219.59,219.58,3.8433]
[1731524369639,843.26735989,219.59,219.58,46.57847998]
[1731524369839,843.26735989,219.59,219.58,51.07253349]
[1731524370151,843.26735989,219.59,219.58,46.47847998]
[1731524370348,843.26735989,219.59,219.5,18.2232]
[1731524370349,23.776884,219.58,219.5,18.2232]
[1731524370645,51.046884,219.57,219.56,42.73517998]
[1731524370830,23.776884,219.56,219.55,0.1]
[1731524371020,27.27,219.56,219.55,85.67035996]
[1731524371260,27.1446,219.56,219.55,0.2]
[1731524371556,27.1446,219.56,219.55,42.93517998]
[1731524371931,27.27,219.58,219.57,0.2]
[1731524372144,27.27,219.58,219.57,0.32549]
[1731524372346,27.27,219.58,219.57,43.06066998]
[1731524372856,683.01195989,219.59,219.58,43.776884]
[1731524373152,683.01195989,219.59,219.58,10.56050035]
[1731524373332,683.01195989,219.59,219.58,42.73517998]
[1731524373531,683.01195989,219.59,219.57,0.1]
[1731524373730,753.01713987,219.59,219.49,42.73517998]
[1731524373940,753.01713987,219.59,219.48,18.206628]
[1731524373941,70.00517998,219.55,219.48,18.206628]
[1731524374347,23.776884,219.52,219.49,42.73517998]
[1731524374561,23.776884,219.52,219.5,0.22549]
[1731524374733,683.01195989,219.59,219.51,42.83517998]
[1731524375051,23.776884,219.58,219.51,42.83517998]
[1731524375351,42.73517998,219.53,219.45,42.73517998]
[1731524375543,51.046884,219.48,219.4,42.73517998]
[1731524375860,51.046884,219.48,219.41,0.22549]
[1731524376239,23.776884,219.48,219.46,42.73517998]
[1731524376756,51.046884,219.5,219.46,42.73517998]
[1731524376948,27.27,219.48,219.4,42.73517998]
[1731524377246,47.27,219.4,219.26,0.1]
[1731524377452,23.776884,219.38,219.37,42.73517998]
[1731524377831,23.776884,219.38,219.35,42.73517998]
[1731524378047,23.776884,219.38,219.31,42.73517998]
[1731524378350,23.776884,219.36,219.29,42.73517998]
[1731524378554,42.73517998,219.33,219.25,42.73517998]
[1731524378731,23.776884,219.32,219.23,42.73517998]
[1731524378932,27.27,219.35,219.23,42.73517998]
[1731524378933,23.776884,219.3,219.23,42.73517998]
[1731524379268,23.776884,219.3,219.16,0.1]
[1731524379269,23.776884,219.24,219.16,42.73517998]
[1731524379433,42.73517998,219.2,219.12,42.73517998]
[1731524379632,42.73517998,219.18,219.11,18.235838]
[1731524379859,23.776884,219.15,219.08,42.73517998]
[1731524380036,23.776884,219.15,219.11,0.12549]
[1731524380230,23.776884,219.15,219.1,42.73517998]
[1731524380231,42.73517998,219.16,219.08,42.73517998]
[1731524380552,42.73517998,219.16,218.98,0.1]
[1731524380553,43.776884,219.09,218.98,42.73517998]
[1731524380749,23.776884,219.03,218.96,60.98309298]
[1731524380951,23.776884,219.03,218.97,0.9129018]
[1731524381252,23.776884,219.03,218.99,42.73517998]
[1731524381552,23.776884,219.03,219.02,0.5549617]
[1731524381756,23.776884,219.03,219.02,0.4294717]
[1731524382942,66.51206398,219.03,219.02,0.4294717]
[1731524383256,66.51206398,219.03,218.95,42.73517998]
[1731524384145,23.776884,218.98,218.93,42.73517998]
[1731524384345,23.776884,218.98,218.94,0.12549]
[1731524384544,23.776884,218.96,218.89,42.73517998]
[1731524384735,23.776884,218.96,218.92,42.73517998]
[1731524384939,23.776884,218.96,218.93,0.12549]
[1731524385735,23.776884,218.96,218.92,42.73517998]
[1731524386142,8.4038,219.07,218.95,42.73517998]
[1731524386461,8.4038,219.07,219.04,42.73517998]
[1731524386758,42.73517998,219.05,218.93,0.12549]
[1731524386963,42.73517998,219.05,218.93,0.22549]
[1731524387141,8.4038,219.07,219.01,42.73517998]
[1731524387342,8.4038,219.07,218.97,0.1]
[1731524387343,8.4038,219.07,219.03,42.73517998]
[1731524387550,8.4038,219.07,219.01,42.73517998]
[1731524388156,8.4038,219.07,219.03,42.73517998]
[1731524388738,8.4038,219.07,219.05,42.73517998]
[1731524388944,8.8808,219.16,219.05,42.73517998]
[1731524389168,8.8808,219.16,219.1,42.73517998]
[1731524389747,8.8808,219.16,219.12,42.73517998]
[1731524390046,8.8808,219.16,219.14,42.73517998]
[1731524390543,21.1052,219.2,219.14,42.73517998]
[1731524391146,21.1052,219.2,219.12,42.73517998]
[1731524391449,8.8808,219.24,219.18,42.73517998]
[1731524391652,8.8808,219.24,219.2,42.73517998]
[1731524392045,8.8808,219.24,219.22,42.73517998]
[1731524392657,21.6297,219.3,219.22,42.73517998]
[1731524392966,8.8627,219.32,219.28,42.73517998]
[1731524393147,8.8627,219.32,219.23,42.73517998]
[1731524393148,8.8627,219.32,219.31,42.73517998]
[1731524393344,8.8627,219.32,219.27,42.73517998]
[1731524393663,8.8627,219.32,219.29,42.73517998]
[1731524394343,8.8627,219.32,219.27,42.73517998]
[1731524394767,23.776884,219.31,219.27,42.73517998]
[1731524394968,8.8627,219.32,219.29,42.73517998]
[1731524395261,8.8627,219.32,219.31,42.73517998]
[1731524395663,30.1419,219.4,219.31,42.73517998]
[1731524395848,8.5122,219.4,219.39,42.73517998]
[1731524396661,21.9639,219.49,219.39,42.73517998]
[1731524396864,0.04294717,219.56,219.39,42.73517998]
[1731524396865,0.04294717,219.56,219.48,42.73517998]
[1731524397059,0.04294717,219.56,219.49,42.73517998]
[1731524397251,0.04294717,219.56,219.53,0.7]
[1731524397763,42.73517998,219.54,219.53,0.7]
[1731524398748,42.77812715,219.56,219.53,0.7]
[1731524399563,0.04294717,219.56,219.53,0.7]
[1731524400268,0.04294717,219.56,219.53,43.43517998]
[1731524400970,0.04294717,219.56,219.55,42.73517998]
[1731524402075,0.04294717,219.56,219.55,85.47035996]
[1731524402364,0.04294717,219.56,219.55,42.73517998]
[1731524402556,0.04294717,219.56,219.55,85.47035996]
[1731524402762,0.04294717,219.56,219.55,42.73517998]
[1731524402964,42.77812715,219.56,219.53,0.7]
[1731524403144,42.77812715,219.56,219.53,43.43517998]
[1731524403145,0.04294717,219.56,219.53,43.43517998]
[1731524403467,0.04294717,219.56,219.47,0.1]
[1731524403468,0.04294717,219.56,219.55,0.12549]
[1731524404064,0.04294717,219.56,219.55,42.86066998]
[1731524404251,0.04294717,219.56,219.55,0.12549]
[1731524404759,0.04294717,219.56,219.55,42.86066998]
[1731524405257,0.04294717,219.56,219.55,0.12549]
[1731524405758,683.01195989,219.59,219.58,0.1]
[1731524405957,683.01195989,219.59,219.58,42.93517998]
[1731524405958,683.39848442,219.59,219.58,42.93517998]
[1731524406156,683.39848442,219.59,219.58,275.34035996]
[1731524406359,683.39848442,219.59,219.58,304.85146858]
[1731524406360,633.38248442,219.59,219.58,304.85146858]
[1731524406547,633.38248442,219.59,219.58,327.13714725]
[1731524406762,570.68448442,219.59,219.58,331.88262823]
[1731524407062,556.44448442,219.59,219.58,336.43462823]
[1731524407249,542.07908442,219.59,219.58,384.56961228]
[1731524407455,441.19391194,219.59,219.58,251.81207234]
[1731524407656,368.70495589,219.59,219.58,251.81207234]
[1731524407856,340.30843655,219.59,219.58,380.01761228]
[1731524408056,312.43705902,219.59,219.58,178.47950967]
[1731524408256,312.43705902,219.59,219.58,194.61548098]
[1731524408464,312.43705902,219.59,219.58,252.81584094]
[1731524408867,312.04805902,219.59,219.58,252.81584094]
[1731524409072,287.04805902,219.59,219.58,291.55912062]
[1731524409273,287.04805902,219.59,219.58,318.82912062]
[1731524410160,287.04805902,219.59,219.58,291.45912062]
[1731524410364,314.31805902,219.59,219.58,311.03782276]
[1731524410555,314.19265902,219.59,219.58,333.32350143]
[1731524410757,314.19265902,219.59,219.58,263.32350143]
[1731524410963,314.19265902,219.59,219.58,333.32350143]
[1731524411156,314.19265902,219.59,219.58,406.43260796]
[1731524411452,307.55375245,219.59,219.58,273.67506802]
[1731524411764,300.75546061,219.59,219.58,406.43260796]
[1731524411960,300.75546061,219.59,219.58,343.69742798]
[1731524412174,275.75546061,219.59,219.58,358.37873595]
[1731524412359,269.56158434,219.59,219.58,358.37873595]
[1731524412674,269.56158434,219.59,219.58,267.8174299]
[1731524413179,269.56158434,219.59,219.58,267.9429199]
[1731524413357,269.43618434,219.59,219.58,343.20977933]
[1731524413554,269.43618434,219.59,219.58,245.65724123]
[1731524413760,269.43618434,219.59,219.58,337.9429199]
[1731524413963,269.43618434,219.59,219.58,343.20977933]
[1731524414475,269.43618434,219.59,219.58,245.65724123]
[1731524414687,269.43618434,219.59,219.58,263.2654299]
[1731524414975,230.19618434,219.59,219.58,268.65777933]
[1731524415173,230.19618434,219.59,219.58,273.20977933]
[1731524415379,223.07618434,219.59,219.58,273.20977933]
[1731524415556,222.95078434,219.59,219.58,273.38473378]
[1731524415878,203.99346552,219.59,219.58,183.48786382]
[1731524416052,196.87346552,219.59,219.58,188.02586382]
[1731524416252,196.87346552,219.59,219.58,316.23140376]
[1731524416554,176.89687929,219.59,219.58,316.23140376]
[1731524416859,136.02757445,219.59,219.58,336.23140376]
[1731524417063,130.5719,219.59,219.58,185.74018515]
[1731524417263,99.5565,219.59,219.58,336.23140376]
[1731524417463,87.0446773,219.59,219.58,336.23140376]
[1731524417980,87.0446773,219.59,219.58,313.46140376]
[1731524418161,50.9184658,219.59,219.58,313.46140376]
[1731524418362,0.8,219.8,219.58,313.46140376]
[1731524418363,0.8,219.8,219.79,10.11260566]
[1731524418575,1.14357736,219.8,219.79,174.65326662]
[1731524418874,1.01817736,219.8,219.79,170.11526662]
[1731524419566,1.01817736,219.8,219.79,212.8504466]
[1731524420077,1.01817736,219.8,219.79,127.38008664]
[1731524420281,1.01817736,219.8,219.79,212.8504466]
[1731524420464,0.1,219.78,219.56,70.0]
[1731524420662,1.01817736,219.8,219.77,85.47035996]
[1731524420864,1.01817736,219.8,219.79,42.73517998]
[1731524421578,1.11817736,219.8,219.79,42.73517998]
[1731524421965,1.11817736,219.8,219.79,0.12549]
[1731524422174,1.01817736,219.8,219.79,42.86066998]
[1731524422382,1.11817736,219.8,219.79,0.12549]
[1731524422582,1.11817736,219.8,219.79,42.73517998]
[1731524422881,0.1,219.74,219.69,3.62612535]
[1731524423058,0.1,219.74,219.7,0.90956108]
[1731524423263,0.1,219.79,219.73,42.73517998]
[1731524423463,0.44357736,219.79,219.78,42.73517998]
[1731524423671,0.54357736,219.79,219.78,42.73517998]
[1731524423882,0.54357736,219.79,219.67,42.73517998]
[1731524423883,0.2,219.77,219.76,42.73517998]
[1731524424067,0.34357736,219.79,219.67,42.73517998]
[1731524424068,0.2,219.75,219.74,42.73517998]
[1731524424685,0.1,219.75,219.74,42.73517998]
[1731524424993,0.1,219.75,219.74,42.86066998]
[1731524425185,0.2,219.75,219.74,42.86066998]
[1731524426190,0.2,219.75,219.74,42.73517998]
[1731524426691,0.2,219.75,219.74,42.86066998]
[1731524426986,0.2,219.75,219.74,42.73517998]
[1731524427193,0.2,219.75,219.74,42.86066998]
[1731524427771,0.1,219.75,219.74,42.86066998]
[1731524427986,0.2,219.75,219.74,42.86066998]
[1731524428182,0.2,219.75,219.74,42.73517998]
[1731524429387,0.1,219.73,219.68,0.90975676]
[1731524429597,0.1,219.71,219.69,0.12549]
[1731524429891,0.1,219.71,219.7,0.90963803]
[1731524430189,0.1,219.76,219.7,163.30963803]
[1731524430399,0.1,219.74,219.69,0.12549]
[1731524430565,0.1,219.74,219.73,42.73517998]
[1731524433387,0.2,219.72,219.71,42.73517998]
[1731524433589,13.5005,219.72,219.69,42.73517998]
[1731524433784,0.1,219.64,219.63,42.73517998]
[1731524433985,0.1,219.51,219.46,0.91023233]
[1731524434183,0.1,219.5,219.45,42.73517998]
[1731524434674,0.1,219.54,219.47,0.12549]
[1731524434883,13.4005,219.58,219.48,5.80596228]
[1731524435076,0.1,219.61,219.48,5.80596228]
[1731524435390,0.1,219.61,219.6,42.73517998]
[1731524435391,0.2,219.61,219.6,42.73517998]
[1731524435779,13.1306,219.65,219.6,43.64548647]
[1731524435780,0.1,219.62,219.6,43.64548647]
[1731524436191,0.1,219.61,219.6,42.73517998]
[1731524436893,0.2,219.58,219.57,0.91028861]
[1731524437088,0.1,219.51,219.44,0.91036787]
[1731524437289,0.1,219.51,219.5,42.73517998]
[1731524437509,0.1,219.52,219.5,248.78075858]
[1731524437668,0.2,219.52,219.5,42.73517998]
[1731524438582,0.2,219.52,219.51,0.12549]
[1731524438892,0.2,219.52,219.51,86.50633421]
[1731524439271,0.1,219.56,219.51,248.90633421]
[1731524439471,0.1,219.58,219.55,85.47035996]
[1731524439694,0.1,219.6,219.56,0.9101879]
[1731524439985,0.1,219.64,219.59,42.73517998]
[1731524440193,0.2,219.6,219.56,4.8956262]
[1731524440395,0.2,219.57,219.56,4.8956262]
[1731524440593,0.1,219.57,219.56,42.73517998]
[1731524440773,13.1306,219.65,219.56,47.63080618]
[1731524440774,0.1,219.6,219.56,47.63080618]
[1731524440972,0.1,219.64,219.59,42.73517998]
[1731524441169,0.1,219.64,219.63,42.73517998]
[1731524441370,0.2,219.64,219.63,42.73517998]
[1731524441591,0.1,219.64,219.63,85.47035996]
[1731524441788,0.2,219.64,219.63,42.73517998]
[1731524441981,0.2,219.64,219.63,29.40187998]
[1731524442188,0.1,219.48,219.4,70.0]
[1731524442393,0.1,219.46,219.34,75.5921]
[1731524442585,0.2,219.46,219.4,3.66012881]
[1731524442976,0.1,219.46,219.41,0.91083694]
[1731524443191,0.2,219.46,219.45,42.86066998]
[1731524443378,0.2,219.46,219.45,42.73517998]
[1731524443693,0.2,219.46,219.45,85.47035996]
[1731524443992,0.1,219.46,219.45,247.99584996]
[1731524444198,0.1,219.46,219.45,247.87035996]
[1731524444374,0.2,219.46,219.45,85.47035996]
[1731524445593,0.2,219.46,219.45,42.73517998]
[1731524447474,0.1,219.42,219.41,42.73517998]
[1731524447687,0.1,219.4,219.39,42.73517998]
[1731524447883,0.2,219.4,219.39,42.73517998]
[1731524448804,0.3,219.38,219.37,42.73517998]
[1731524449100,0.2,219.36,219.35,42.73517998]
[1731524449680,0.1,219.39,219.35,205.26066998]
[1731524450028,0.1,219.39,219.38,85.47035996]
[1731524450207,0.1,219.4,219.38,206.04613584]
[1731524450504,0.1,219.39,219.38,205.13517998]
[1731524451387,0.1,219.39,219.38,42.73517998]
[1731524453195,0.1,219.39,219.38,42.86066998]
[1731524453396,0.1,219.4,219.38,42.86066998]
[1731524453702,0.1,219.4,219.39,0.91102825]
[1731524454601,0.1,219.4,219.38,42.86066998]
[1731524454602,0.1,219.39,219.38,42.73517998]